fUST/lending_fUST_20240921
["ID","MTS","AMOUNT","RATE_DAILY","PERIOD"]
[338830958,1726930266015,-999.91,0.00017027,2]
[338830959,1726930266025,-569.52,0.00017027,2]
[338830960,1726930266034,-529.76,0.00017027,2]
[338830961,1726930266043,-500.0,0.00017027,2]
[338830962,1726930266052,-566.33,0.00017037,2]
[338830963,1726930266062,-500.0,0.00017037,2]
[338830964,1726930266071,-905.74,0.00017037,2]
[338830965,1726930266080,-500.0,0.00017037,2]
[338830966,1726930266090,-200.0,0.00017037,2]
[338830967,1726930266100,-500.0,0.00017037,2]
[338830968,1726930266109,-500.0,0.00017037,2]
[338830969,1726930266118,-324.77478326,0.00017037,2]
[338830970,1726930266127,-500.0,0.00017037,2]
[338830971,1726930266136,-524.54,0.00017037,2]
[338830972,1726930266146,-13265.25,0.00017037,2]
[338830973,1726930266155,-559.83,0.00017037,2]
[338830974,1726930266165,-2064.47,0.00017037,2]
[338830975,1726930266175,-500.0,0.00017037,2]
[338830976,1726930266184,-741.52,0.00017038,2]
[338830977,1726930266194,-500.0,0.00017038,2]
[338830978,1726930266203,-500.0,0.00017038,2]
[338830979,1726930266212,-1190.54,0.00017038,2]
[338830980,1726930266221,-578.76,0.00017038,2]
[338830981,1726930266231,-240.11,0.00017038,2]
[338830982,1726930266240,-500.0,0.00017038,2]
[338830983,1726930266250,-500.0,0.00017038,2]
[338830984,1726930266259,-500.0,0.00017038,2]
[338830985,1726930266269,-654.78,0.00017038,2]
[338830986,1726930266280,-383.9,0.00017086,2]
[338830987,1726930266289,-501.74106086,0.00017154,2]
[338830988,1726930266299,-150.112233,0.000172,2]
[338830989,1726930266307,-500.0,0.00017301,2]
[338830990,1726930266317,-500.0,0.00017301,2]
[338830991,1726930266326,-200.0,0.00017301,2]
[338830992,1726930266336,-500.0,0.00017301,2]
[338830993,1726930266345,-500.0,0.00017301,2]
[338830994,1726930266355,-813.69,0.00017301,2]
[338830995,1726930266365,-500.0,0.00017301,2]
[338830996,1726930266375,-500.0,0.00017301,2]
[338830997,1726930266384,-581.93,0.00017301,2]
[338830998,1726930266393,-607.72,0.00017301,2]
[338830999,1726930266401,-626.31,0.00017301,2]
[338831000,1726930266410,-999.91,0.00017301,2]
[338831001,1726930266419,-569.52,0.00017301,2]
[338831002,1726930266429,-529.76,0.00017301,2]
[338831003,1726930266438,-500.0,0.00017301,2]
[338831004,1726930266448,-566.33,0.00017311,2]
[338831005,1726930266457,-500.0,0.00017311,2]
[338831006,1726930266466,-905.74,0.00017311,2]
[338831007,1726930266475,-500.0,0.00017311,2]
[338831008,1726930266484,-200.0,0.00017311,2]
[338831009,1726930266494,-500.0,0.00017311,2]
[338831010,1726930266504,-500.0,0.00017311,2]
[338831011,1726930266514,-500.0,0.00017311,2]
[338831012,1726930266524,-524.54,0.00017311,2]
[338831013,1726930266533,-13265.25,0.00017311,2]
[338831014,1726930266542,-559.83,0.00017311,2]
[338831015,1726930266551,-2064.47,0.00017311,2]
[338831016,1726930266560,-500.0,0.00017311,2]
[338831017,1726930266569,-741.52,0.00017312,2]
[338831018,1726930266580,-500.0,0.00017312,2]
[338831019,1726930266590,-502.32612693,0.00017312,2]
[338831020,1726930266600,-1190.54,0.00017312,2]
[338831021,1726930266609,-578.76,0.00017312,2]
[338831022,1726930266618,-500.0,0.00017312,2]
[338831023,1726930266627,-500.0,0.00017312,2]
[338831024,1726930266637,-654.78,0.00017312,2]
[338831025,1726930266646,-383.9,0.00017409,2]
[338831026,1726930266656,-1000.0,0.000175,2]
[338831027,1726930266665,-2500.0,0.00017513,2]
[338831028,1726930266675,-2500.0,0.00017522,2]
[338831029,1726930266684,-2500.0,0.00017531,2]
[338831030,1726930266694,-10045.58466108,0.00017532,10]
[338831031,1726930266703,-2500.0,0.0001754,2]
[338831032,1726930266713,-2500.0,0.00017549,2]
[338831033,1726930266723,-2500.0,0.00017557,2]
[338831034,1726930266732,-2500.0,0.00017566,2]
[338831035,1726930266742,-500.0,0.00017575,2]
[338831036,1726930266751,-500.0,0.00017575,2]
[338831037,1726930266761,-200.0,0.00017575,2]
[338831038,1726930266771,-500.0,0.00017575,2]
[338831039,1726930266783,-500.0,0.00017575,2]
[338831040,1726930266801,-813.69,0.00017575,2]
[338831041,1726930266810,-500.0,0.00017575,2]
[338831042,1726930266819,-500.0,0.00017575,2]
[338831043,1726930266828,-581.93,0.00017575,2]
[338831044,1726930266837,-607.72,0.00017575,2]
[338831045,1726930266846,-626.31,0.00017575,2]
[338831046,1726930266856,-999.91,0.00017575,2]
[338831047,1726930266865,-569.52,0.00017575,2]
[338831048,1726930266874,-529.76,0.00017575,2]
[338831049,1726930266883,-200.43089,0.00017575,2]
[338831050,1726930266893,-151.0,0.00017575,2]
[338831051,1726930266902,-200.43089,0.00017575,2]
[338831052,1726930266911,-459.343143,0.00017575,2]
[338831053,1726930266920,-151.0,0.00017575,2]
[338831054,1726930266929,-459.343143,0.00017575,2]
[338831055,1726930266938,-770.958191,0.00017575,2]
[338831056,1726930266948,-151.0,0.00017575,2]
[338831057,1726930266957,-770.958191,0.00017575,2]
[338831058,1726930266967,-500.0,0.00017575,2]
[338831059,1726930266977,-571.719311,0.00017575,2]
[338831060,1726930266986,-571.719311,0.00017575,2]
[338831061,1726930266995,-1934.204934,0.00017575,2]
[338831062,1726930267004,-1934.204934,0.00017575,2]
[338831063,1726930267014,-2001.061906,0.00017575,2]
[338831064,1726930267023,-2001.061906,0.00017575,2]
[338831065,1726930267037,-2500.0,0.00017575,2]
[338831066,1726930267046,-2500.0,0.00017584,2]
[338831067,1726930267055,-566.33,0.00017585,2]
[338831068,1726930267064,-500.0,0.00017585,2]
[338831069,1726930267073,-905.74,0.00017585,2]
[338831070,1726930267082,-500.0,0.00017585,2]
[338831071,1726930267092,-200.0,0.00017585,2]
[338831072,1726930267101,-602.48346368,0.00017585,2]
[338831073,1726930267110,-500.0,0.00017585,2]
[338831074,1726930267120,-524.54,0.00017585,2]
[338831075,1726930267129,-13265.25,0.00017585,2]
[338831076,1726930267138,-559.83,0.00017585,2]
[338831077,1726930267148,-2064.47,0.00017585,2]
[338831078,1726930267158,-500.0,0.00017585,2]
[338831079,1726930267168,-741.52,0.00017586,2]
[338831080,1726930267177,-500.0,0.00017586,2]
[338831081,1726930267186,-1190.54,0.00017586,2]
[338831082,1726930267195,-578.76,0.00017586,2]
[338831083,1726930267204,-500.0,0.00017586,2]
[338831084,1726930267214,-500.0,0.00017586,2]
[338831085,1726930267225,-654.78,0.00017586,2]
[338831086,1726930267234,-722.457,0.00017587,2]
[338831087,1726930267243,-2500.0,0.00017593,2]
[338831088,1726930267253,-2500.0,0.00017601,2]
[338831089,1726930267262,-361.24522872,0.00017604,2]
[338831090,1726930267272,-2500.0,0.0001761,2]
[338831091,1726930267284,-2500.0,0.00017619,2]
[338831092,1726930267293,-205.87631609,0.00017632,2]
[338831093,1726930267302,-151.0,0.00017645,2]
[338831094,1726930267311,-500.96969178,0.00017646,2]
[338831095,1726930267320,-621.17960901,0.00017689,2]
[338831096,1726930267330,-151.0,0.00017689,2]
[338831097,1726930267339,-151.0,0.00017689,2]
[338831098,1726930267348,-1057.482645,0.00017689,2]
[338831099,1726930267357,-1057.482645,0.00017689,2]
[338831100,1726930267366,-254.69851,0.00017689,2]
[338831101,1726930267376,-254.69851,0.00017689,2]
[338831102,1726930267385,-1045.610299,0.00017689,2]
[338831103,1726930267394,-1045.610299,0.00017689,2]
[338831104,1726930267403,-383.9,0.00017733,2]
[338831105,1726930267412,-500.0,0.00017849,2]
[338831106,1726930267421,-500.0,0.00017849,2]
[338831107,1726930267430,-200.0,0.00017849,2]
[338831108,1726930267438,-500.0,0.00017849,2]
[338831109,1726930267447,-151.0,0.00017849,2]
[338831110,1726930267456,-211.4,0.00017849,2]
[338831111,1726930267466,-211.4,0.00017849,2]
[338831112,1726930267476,-183.849992,0.00017849,2]
[338831113,1726930267485,-183.849992,0.00017849,2]
[338831114,1726930267494,-500.0,0.00017849,2]
[338831115,1726930267504,-813.69,0.00017849,2]
[338831116,1726930267513,-151.0,0.00017849,2]
[338831117,1726930267521,-196.01110269,0.00017849,2]
[338831118,1726930267531,-151.0,0.00017849,2]
[338831119,1726930267540,-242.658298,0.00017849,2]
[338831120,1726930267644,-242.658298,0.00017849,2]
[338831121,1726930267663,-500.0,0.00017849,2]
[338831122,1726930267674,-581.93,0.00017849,2]
[338831123,1726930267683,-607.72,0.00017849,2]
[338831124,1726930267693,-626.31,0.00017849,2]
[338831125,1726930267704,-999.91,0.00017849,2]
[338831126,1726930267714,-569.52,0.00017849,2]
[338831127,1726930267723,-529.76,0.00017849,2]
[338831128,1726930267736,-500.0,0.00017849,2]
[338831129,1726930267748,-566.33,0.00017859,2]
[338831130,1726930267759,-500.0,0.00017859,2]
[338831131,1726930267768,-905.74,0.00017859,2]
[338831132,1726930267781,-200.0,0.00017859,2]
[338831133,1726930267791,-500.0,0.00017859,2]
[338831134,1726930267801,-524.54,0.00017859,2]
[338831135,1726930267812,-13265.25,0.00017859,2]
[338831136,1726930267822,-559.83,0.00017859,2]
[338831137,1726930267833,-2064.47,0.00017859,2]
[338831138,1726930267842,-500.0,0.00017859,2]
[338831139,1726930267851,-741.52,0.0001786,2]
[338831140,1726930267860,-500.0,0.0001786,2]
[338831141,1726930267872,-1190.54,0.0001786,2]
[338831142,1726930267882,-578.76,0.0001786,2]
[338831143,1726930267891,-183.87524158,0.0001786,2]
[338831144,1726930267900,-167.56,0.0001786,2]
[338831145,1726930267910,-654.78,0.0001786,2]
[338831146,1726930267919,-13477.55971067,0.000179,2]
[338831147,1726930267928,-16161.96984596,0.000179,2]
[338831148,1726930267939,-16161.96984596,0.000179,2]
[338831149,1726930267948,-16161.96984596,0.000179,2]
[338831150,1726930267958,-16161.96984596,0.000179,2]
[338831151,1726930267968,-152.0,0.000179,2]
[338831152,1726930267978,-1501.01932587,0.00017946,2]
[338831153,1726930267987,-1387.38005517,0.00017946,2]
[338831154,1726930267997,-457.18881991,0.00017956,2]
[338831155,1726930268006,-2000.0,0.00018,2]
[338831156,1726930268015,-1050.96825691,0.00018,2]
[338831157,1726930268025,-207.02102969,0.00018,2]
[338831158,1726930268035,-1000.0,0.00018,2]
[338831159,1726930268047,-500.0,0.00018057,2]
[338831160,1726930268057,-383.9,0.00018057,2]
[338831161,1726930268068,-550.0,0.000181,2]
[338831162,1726930268077,-500.0,0.00018123,2]
[338831163,1726930268086,-548.65244305,0.00018123,2]
[338831164,1726930268095,-200.0,0.00018123,2]
[338831165,1726930268104,-500.0,0.00018123,2]
[338831166,1726930268114,-500.0,0.00018123,2]
[338831167,1726930268124,-813.69,0.00018123,2]
[338831168,1726930268134,-500.0,0.00018123,2]
[338831169,1726930268143,-581.93,0.00018123,2]
[338831170,1726930268152,-607.72,0.00018123,2]
[338831171,1726930268161,-626.31,0.00018123,2]
[338831172,1726930268171,-999.91,0.00018123,2]
[338831173,1726930268180,-569.52,0.00018123,2]
[338831174,1726930268190,-529.76,0.00018123,2]
[338831175,1726930268200,-500.0,0.00018123,2]
[338831176,1726930268210,-566.33,0.00018133,2]
[338831177,1726930268219,-500.0,0.00018133,2]
[338831178,1726930268228,-905.74,0.00018133,2]
[338831179,1726930268238,-200.0,0.00018133,2]
[338831180,1726930268247,-500.0,0.00018133,2]
[338831181,1726930268257,-524.54,0.00018133,2]
[338831182,1726930268266,-13265.25,0.00018133,2]
[338831183,1726930268275,-559.83,0.00018133,2]
[338831184,1726930268285,-2064.47,0.00018133,2]
[338831185,1726930268304,-500.0,0.00018133,2]
[338831186,1726930268315,-741.52,0.00018134,2]
[338831187,1726930268325,-500.0,0.00018134,2]
[338831188,1726930268336,-1190.54,0.00018134,2]
[338831189,1726930268346,-578.76,0.00018134,2]
[338831190,1726930268357,-654.78,0.00018134,2]
[338831191,1726930268367,-7121.47607504,0.00018166,2]
[338831192,1726930268377,-151.0,0.0001833,2]
[338831193,1726930268387,-151.0,0.0001833,2]
[338831194,1726930268397,-151.0,0.0001833,2]
[338831195,1726930268407,-160.0,0.0001837,3]
[338831196,1726930268418,-383.9,0.00018381,2]
[338831197,1726930268430,-500.0,0.00018397,2]
[338831198,1726930268440,-328.21575354,0.00018397,2]
[338831199,1726930268450,-500.0,0.00018397,2]
[338831200,1726930268459,-500.0,0.00018397,2]
[338831201,1726930268470,-813.69,0.00018397,2]
[338831202,1726930268479,-500.0,0.00018397,2]
[338831203,1726930268489,-581.93,0.00018397,2]
[338831204,1726930268499,-607.72,0.00018397,2]
[338831205,1726930268509,-626.31,0.00018397,2]
[338831206,1726930268519,-999.91,0.00018397,2]
[338831207,1726930268528,-569.52,0.00018397,2]
[338831208,1726930268538,-529.76,0.00018397,2]
[338831209,1726930268548,-500.0,0.00018397,2]
[338831210,1726930268558,-550.0,0.000184,2]
[338831211,1726930268568,-566.33,0.00018407,2]
[338831212,1726930268579,-500.0,0.00018407,2]
[338831213,1726930268592,-905.74,0.00018407,2]
[338831214,1726930268601,-200.0,0.00018407,2]
[338831215,1726930268611,-500.0,0.00018407,2]
[338831216,1726930268620,-524.54,0.00018407,2]
[338831217,1726930268630,-13265.25,0.00018407,2]
[338831218,1726930268639,-559.83,0.00018407,2]
[338831219,1726930268649,-2064.47,0.00018407,2]
[338831220,1726930268659,-500.0,0.00018407,2]
[338831221,1726930268668,-741.52,0.00018408,2]
[338831222,1726930268678,-500.0,0.00018408,2]
[338831223,1726930268688,-1190.54,0.00018408,2]
[338831224,1726930268698,-578.76,0.00018408,2]
[338831225,1726930268707,-654.78,0.00018408,2]
[338831226,1726930268717,-823.0,0.00018427,2]
[338831227,1726930268726,-205.0,0.0001847,2]
[338831228,1726930268735,-1000.0,0.000185,2]
[338831229,1726930268745,-1500.0,0.00018534,2]
[338831230,1726930268755,-1500.0,0.00018534,2]
[338831231,1726930268764,-1500.0,0.00018559,2]
[338831232,1726930268773,-620.05898045,0.00018573,2]
[338831233,1726930268784,-7121.47607504,0.00018583,2]
[338831234,1726930268793,-550.0,0.000186,2]
[338831235,1726930268803,-500.0,0.0001867,2]
[338831236,1726930268812,-500.0,0.0001867,2]
[338831237,1726930268822,-500.0,0.00018671,2]
[338831238,1726930268831,-176.17898912,0.00018671,2]
[338831239,1726930268841,-500.0,0.00018671,2]
[338831240,1726930268851,-813.69,0.00018671,2]
[338831241,1726930268860,-500.0,0.00018671,2]
[338831242,1726930268869,-581.93,0.00018671,2]
[338831243,1726930268879,-607.72,0.00018671,2]
[338831244,1726930268889,-626.31,0.00018671,2]
[338831245,1726930268899,-999.91,0.00018671,2]
[338831246,1726930268909,-569.52,0.00018671,2]
[338831247,1726930268918,-529.76,0.00018671,2]
[338831248,1726930268933,-500.0,0.00018671,2]
[338831249,1726930268943,-566.33,0.00018681,2]
[338831250,1726930268952,-500.0,0.00018681,2]
[338831251,1726930268963,-905.74,0.00018681,2]
[338831252,1726930268972,-200.0,0.00018681,2]
[338831253,1726930268982,-500.0,0.00018681,2]
[338831254,1726930268993,-524.54,0.00018681,2]
[338831255,1726930269003,-13265.25,0.00018681,2]
[338831256,1726930269013,-559.83,0.00018681,2]
[338831257,1726930269022,-2064.47,0.00018681,2]
[338831258,1726930269033,-500.0,0.00018681,2]
[338831259,1726930269043,-741.52,0.00018682,2]
[338831260,1726930269052,-500.0,0.00018682,2]
[338831261,1726930269062,-1190.54,0.00018682,2]
[338831262,1726930269072,-578.76,0.00018682,2]
[338831263,1726930269082,-654.78,0.00018682,2]
[338831264,1726930269092,-383.9,0.00018705,2]
[338831265,1726930269101,-550.0,0.000188,2]
[338831266,1726930269111,-7121.47607504,0.00018867,2]
[338831267,1726930269121,-7121.47607504,0.00018913,2]
[338831268,1726930269130,-500.0,0.00018945,2]
[338831269,1726930269140,-500.0,0.00018945,2]
[338831270,1726930269149,-813.69,0.00018945,2]
[338831271,1726930269159,-500.0,0.00018945,2]
[338831272,1726930269168,-581.93,0.00018945,2]
[338831273,1726930269178,-607.72,0.00018945,2]
[338831274,1726930269187,-626.31,0.00018945,2]
[338831275,1726930269197,-999.91,0.00018945,2]
[338831276,1726930269206,-569.52,0.00018945,2]
[338831277,1726930269215,-529.76,0.00018945,2]
[338831278,1726930269225,-500.0,0.00018945,2]
[338831279,1726930269235,-566.33,0.00018955,2]
[338831280,1726930269244,-315.61596561,0.00018955,2]
[338831281,1726930269254,-905.74,0.00018955,2]
[338831282,1726930269263,-200.0,0.00018955,2]
[338831283,1726930269273,-500.0,0.00018955,2]
[338831284,1726930269283,-524.54,0.00018955,2]
[338831285,1726930269293,-2678.11554412,0.00018955,2]
[338831286,1726930269799,-500.0,0.00014024,2]
[338831287,1726930269809,-500.0,0.00014298,2]
[338831288,1726930269819,-168.02358464,0.00014572,2]
[338831289,1726930276059,500.0,0.00014014,2]
[338831293,1726930355896,500.0,0.00014014,2]
[338831296,1726930453366,500.0,0.00014014,2]
[338831297,1726930469850,538.45,0.00014014,2]
[338831298,1726930478861,560.11274404,0.00014014,2]
[338831299,1726930482324,500.0,0.00014014,2]
[338831300,1726930485166,500.0,0.00014014,2]
[338831301,1726930492606,500.0,0.00014014,2]
[338831315,1726930595675,500.0,0.00014014,2]
[338831316,1726930647756,500.0,0.00014014,2]
[338831317,1726930713264,253.52737714,0.00014014,2]
[338831318,1726930743863,500.0,0.00014014,2]
[338831319,1726930752570,500.0,0.00014014,2]
[338831320,1726930757225,500.0,0.00014014,2]
[338831321,1726930760402,355.87954704,0.00014014,2]
[338831322,1726930762718,500.0,0.00014014,2]
[338831323,1726930768517,500.0,0.00014014,2]
[338831324,1726930773068,500.0,0.00014014,2]
[338831325,1726930785651,500.0,0.00014014,2]
[338831327,1726930800808,500.0,0.00014014,2]
[338831329,1726930823804,250.0,0.00013511,2]
[338831330,1726930824060,250.0,0.00013548,2]
[338831331,1726930824334,250.0,0.00013585,2]
[338831332,1726930824562,250.0,0.00013622,2]
[338831333,1726930824792,250.0,0.00013659,2]
[338831334,1726930825062,250.0,0.00013696,2]
[338831335,1726930825244,250.0,0.00013733,2]
[338831336,1726930825462,250.0,0.0001377,2]
[338831337,1726930825678,250.0,0.00013807,2]
[338831338,1726930825925,250.0,0.00013844,2]
[338831339,1726930826124,250.0,0.00013881,2]
[338831340,1726930826327,250.0,0.00013918,2]
[338831341,1726930826783,250.0,0.00013955,2]
[338831342,1726930827000,250.0,0.00013992,2]
[338831343,1726930833684,36528.6299486,0.00014,2]
[338831344,1726930851683,14860.3401917,0.00013268,2]
[338831345,1726930900778,1000.0,0.00022,120]
[338831346,1726930901916,1000.0,0.00022,120]
[338831347,1726930902909,1000.0,0.00022,120]
[338831348,1726930903745,1000.0,0.00022,120]
[338831349,1726930904494,1000.0,0.00022,120]
[338831350,1726930905373,1000.0,0.00022,120]
[338831351,1726930906015,1000.0,0.00022,120]
[338831352,1726930906467,1000.0,0.00022,120]
[338831353,1726930907110,1000.0,0.00022,120]
[338831354,1726930907558,1000.0,0.00022,120]
[338831355,1726930914535,1734.31,0.00022,120]
[338831356,1726930930833,500.0,0.00022,120]
[338831357,1726930948419,5653.66326608,0.00013923,2]
[338831359,1726930951885,1734.31,0.00022,120]
[338831360,1726930952819,1734.31,0.00022,120]
[338831361,1726930953504,1734.31,0.00022,120]
[338831362,1726930954116,1734.31,0.00022,120]
[338831363,1726930954724,1734.31,0.00022,120]
[338831364,1726930968208,1328.45,0.00022,120]
[338831367,1726931356848,166.666666,0.00013334,2]
[338831368,1726931357250,166.666666,0.00013421,2]
[338831369,1726931357302,166.666666,0.00013507,2]
[338831370,1726931357519,166.666666,0.00013594,2]
[338831371,1726931357750,166.666666,0.00013681,2]
[338831372,1726931357979,166.666666,0.00013768,2]
[338831373,1726931358425,166.666666,0.00013855,2]
[338831374,1726931358896,166.666666,0.00013942,2]
[338831463,1726931438791,-300.0,0.00014022,2]
[338831464,1726931438802,-300.0,0.00014022,2]
[338831465,1726931438812,-500.0,0.00014023,2]
[338831466,1726931438821,-500.0,0.00014023,2]
[338831467,1726931438831,-500.0,0.00014023,2]
[338831468,1726931438840,-500.0,0.00014023,2]
[338831469,1726931438850,-500.0,0.00014023,2]
[338831471,1726931438859,-500.0,0.00014023,2]
[338831473,1726931438869,-500.0,0.00014023,2]
[338831474,1726931438879,-500.0,0.00014023,2]
[338831476,1726931438888,-500.0,0.00014023,2]
[338831478,1726931438898,-500.0,0.00014023,2]
[338831480,1726931438907,-500.0,0.00014023,2]
[338831482,1726931438917,-500.0,0.00014023,2]
[338831485,1726931438926,-500.0,0.00014023,2]
[338831486,1726931438936,-500.0,0.00014023,2]
[338831489,1726931438947,-500.0,0.00014023,2]
[338831491,1726931438956,-500.0,0.00014023,2]
[338831493,1726931438965,-500.0,0.00014023,2]
[338831495,1726931438976,-426.35407418,0.00014023,2]
[338831497,1726931438985,-500.0,0.00014023,2]
[338831499,1726931438995,-500.0,0.00014023,2]
[338831501,1726931439005,-500.0,0.00014023,2]
[338831503,1726931439014,-500.0,0.00014023,2]
[338831505,1726931439023,-500.0,0.00014023,2]
[338831507,1726931439034,-500.0,0.00014023,2]
[338831509,1726931439043,-585.17,0.00014023,2]
[338831511,1726931439053,-500.0,0.00014023,2]
[338831513,1726931439062,-302.78105398,0.00014023,2]
[338831515,1726931439072,-500.0,0.00014023,2]
[338831517,1726931439082,-500.0,0.00014023,2]
[338831518,1726931439092,-166.666666,0.00014029,2]
[338831520,1726931439101,-1105.39859655,0.00014187,2]
[338831522,1726931439110,-500.0,0.00014286,2]
[338831525,1726931439121,-500.0,0.00014286,2]
[338831527,1726931439131,-500.0,0.00014286,2]
[338831528,1726931439140,-500.0,0.00014286,2]
[338831530,1726931439150,-7877.84,0.00014286,2]
[338831532,1726931439159,-1226.03,0.00014286,2]
[338831534,1726931439169,-500.0,0.00014287,2]
[338831537,1726931439179,-500.0,0.00014287,2]
[338831539,1726931439188,-500.0,0.00014287,2]
[338831541,1726931439197,-537.14303815,0.00014287,2]
[338831543,1726931439206,-516.02,0.00014287,2]
[338831545,1726931439216,-500.0,0.00014287,2]
[338831547,1726931439226,-500.0,0.00014287,2]
[338831548,1726931439235,-500.0,0.00014287,2]
[338831550,1726931439244,-500.0,0.00014287,2]
[338831553,1726931439253,-500.0,0.00014287,2]
[338831555,1726931439262,-569.35,0.00014287,2]
[338831557,1726931439272,-500.0,0.00014287,2]
[338831559,1726931439281,-500.0,0.00014287,2]
[338831561,1726931439290,-500.0,0.00014287,2]
[338831563,1726931439299,-500.0,0.00014287,2]
[338831565,1726931439309,-292.86319176,0.00014287,2]
[338831567,1726931439318,-500.0,0.00014287,2]
[338831569,1726931439327,-500.0,0.00014287,2]
[338831571,1726931439336,-500.0,0.00014287,2]
[338831573,1726931439346,-500.0,0.00014287,2]
[338831575,1726931439354,-500.0,0.00014287,2]
[338831577,1726931439363,-500.0,0.00014287,2]
[338831579,1726931439373,-500.0,0.00014287,2]
[338831581,1726931439383,-500.0,0.00014287,2]
[338831583,1726931439392,-500.0,0.00014287,2]
[338831585,1726931439401,-500.0,0.00014287,2]
[338831587,1726931439410,-500.0,0.00014288,2]
[338831589,1726931439420,-500.0,0.00014288,2]
[338831591,1726931439430,-500.0,0.00014296,2]
[338831593,1726931439439,-500.0,0.00014296,2]
[338831595,1726931439449,-500.0,0.00014296,2]
[338831597,1726931439458,-500.0,0.00014296,2]
[338831599,1726931439467,-500.0,0.00014296,2]
[338831601,1726931439477,-500.0,0.00014296,2]
[338831603,1726931439486,-500.0,0.00014296,2]
[338831605,1726931439495,-500.0,0.00014296,2]
[338831607,1726931439504,-500.0,0.00014296,2]
[338831609,1726931439513,-500.0,0.00014296,2]
[338831611,1726931439522,-500.0,0.00014296,2]
[338831613,1726931439531,-500.0,0.00014296,2]
[338831615,1726931439540,-500.0,0.00014296,2]
[338831617,1726931439550,-500.0,0.00014296,2]
[338831619,1726931439559,-500.0,0.00014296,2]
[338831621,1726931439568,-521.4,0.00014296,2]
[338831623,1726931439577,-500.0,0.00014296,2]
[338831625,1726931439586,-500.0,0.00014296,2]
[338831627,1726931439594,-500.0,0.00014296,2]
[338831629,1726931439604,-500.0,0.00014296,2]
[338831631,1726931439613,-500.0,0.00014297,2]
[338831633,1726931439622,-500.0,0.00014297,2]
[338831635,1726931439631,-583.84113694,0.00014297,2]
[338831637,1726931439641,-500.0,0.00014297,2]
[338831639,1726931439650,-500.0,0.00014297,2]
[338831641,1726931439660,-500.0,0.00014297,2]
[338831643,1726931439669,-500.0,0.00014297,2]
[338831645,1726931439678,-500.0,0.00014297,2]
[338831647,1726931439688,-500.0,0.00014297,2]
[338831649,1726931439697,-500.0,0.00014297,2]
[338831651,1726931439706,-500.0,0.00014297,2]
[338831653,1726931439718,-500.0,0.00014297,2]
[338831655,1726931439728,-500.0,0.00014297,2]
[338831657,1726931439737,-500.0,0.00014297,2]
[338831659,1726931439747,-500.0,0.00014297,2]
[338831661,1726931439756,-500.0,0.00014297,2]
[338831663,1726931439766,-500.0,0.00014297,2]
[338831665,1726931439775,-500.0,0.00014297,2]
[338831667,1726931439785,-500.0,0.00014297,2]